[Event "95th Caplin Hastings Congress"]
[Site "Hastings"]
[Date "2019.12.29"]
[Round "2.55"]
[White "Bryant, Marc A"]
[Black "Dewangan, Aayush"]
[Result "1-0"]
[WhiteElo "1823"]
[BlackElo "1548"]
[Annotator "NA"]
[PlyCount "25"]
[EventDate "2019.12.28"]
[EventType "swiss"]
[EventCountry "ENG"]
[SourceTitle "playchess.com"]
[Source "ChessBase"]
[SourceQuality "1"]
[TimeControl "40/6600+30:3000+30"]

1. e4 {[%emt 0:12:54]} c5 {[%emt 0:00:19]} 2. f4 {[%emt 0:00:09]} d6 {[%emt 0:00:31]} 3. h3 {[%emt 0:00:05]} g6 {[%emt 0:01:18]} 4. Nf3 {[%emt 0:00:08]} Bg7 {[%emt 0:00:39]} 5. d3 {[%emt 0:00:17]} Nc6 {[%emt 0:00:19]} 6. c3 {[%emt 0:00:07]} e6 {[%emt 0:00:44]} 7. Be3 {[%emt 0:00:17]} Nge7 {[%emt 0:00:39]} 8. Be2 {[%emt 0:00:07]} O-O {[%emt 0:01:07]} 9. g4 {[%emt 0:00:04]} f5 {[%emt 0:00:55]} 10. Nbd2 {[%emt 0:00:32]} b6 {[%emt 0:02:14]} 11. g5 {[%emt 0:00:17]} d5 {[%emt 0:01:10]} 12. e5 {[%emt 0:00:16]} Bb7 {[%emt 0:01:49]} 13. h4 {[%emt 0:00:24]} 1-0

[Event "95th Caplin Hastings Congress"]
[Site "Hastings"]
[Date "2019.12.29"]
[Round "2.56"]
[White "Stoyanov, Boris"]
[Black "Drastik, Penelope"]
[Result "0-1"]
[ECO "B52"]
[WhiteElo "1504"]
[BlackElo "1821"]
[Annotator "NA"]
[PlyCount "80"]
[EventDate "2019.12.28"]
[EventType "swiss"]
[EventCountry "ENG"]
[SourceTitle "playchess.com"]
[Source "ChessBase"]
[SourceQuality "1"]
[TimeControl "40/6600+30:3000+30"]

1. e4 {[%emt 0:25:21]} c5 {[%emt 0:00:03]} 2. Nf3 {[%emt 0:00:04]} d6 {[%emt 0:00:03]} 3. Bb5+ {[%emt 0:00:05]} Bd7 {[%emt 0:00:04]} 4. Bxd7+ {[%emt 0:00:07]} Qxd7 {[%emt 0:00:04]} 5. O-O {[%emt 0:00:07]} Nf6 {[%emt 0:00:03]} 6. Qe2 {[%emt 0:00:07]} Nc6 {[%emt 0:00:12]} 7. c3 {[%emt 0:00:49]} e6 {[%emt 0:00:10]} 8. d4 {[%emt 0:00:48]} cxd4 {[%emt 0:00:05]} 9. cxd4 {[%emt 0:00:05]} d5 {[%emt 0:00:06]} 10. e5 {[%emt 0:03:05]} Ne4 {[%emt 0:00:04]} 11. Nbd2 {[%emt 0:00:00]} Nxd2 {[%emt 0:09:39]} 12. Bxd2 {[%emt 0:00:00]} Be7 {[%emt 0:01:49]} 13. Rac1 {[%emt 0:00:54]} O-O {[%emt 0:00:24]} 14. Rc2 {[%emt 0:00:00]} f6 {[%emt 0:07:37]} 15. Re1 {[%emt 0:00:00]} Rae8 {[%emt 0:10:03]} 16. a3 {[%emt 0:11:33]} fxe5 {[%emt 0:00:44]} 17. Nxe5 {[%emt 0:02:34]} Nxe5 {[%emt 0:00:06]} 18. dxe5 {[%emt 0:04:47]} Bd8 {[%emt 0:05:10]} 19. Qg4 {[%emt 0:07:43]} Rf5 {[%emt 0:01:00]} 20. Bc3 {[%emt 0:19:13]} Ref8 {[%emt 0:03:51]} 21. Ree2 {[%emt 0:04:34]} Rf4 {[%emt 0:04:40]} 22. Qg3 {[%emt 0:04:52]} Qa4 {[%emt 0:17:19]} 23. h3 {[%emt 0:10:41]} a5 {[%emt 0:05:10]} 24. Qd3 {[%emt 0:04:22]} Bb6 {[%emt 0:01:29]} 25. Kf1 {[%emt 0:04:49]} R4f5 {[%emt 0:03:04]} 26. Rcd2 {[%emt 0:06:06]} Qf4 {[%emt 0:02:44]} 27. g3 {[%emt 0:03:25]} Qh6 {[%emt 0:00:21]} 28. Kg2 {[%emt 0:01:25]} Rh5 {[%emt 0:01:25]} 29. g4 {[%emt 0:02:59]} Rh4 {[%emt 0:00:39]} 30. Rc2 {[%emt 0:03:03]} Qg5 {[%emt 0:04:36]} 31. Qg3 {[%emt 0:00:37]} h5 {[%emt 0:00:41]} 32. f3 {[%emt 0:01:57]} hxg4 {[%emt 0:00:12]} 33. hxg4 {[%emt 0:00:54]} Qe7 {[%emt 0:01:19]} 34. b4 {[%emt 0:00:47]} d4 {[%emt 0:00:16]} 35. Be1 {[%emt 0:00:28]} Rh7 {[%emt 0:00:26]} 36. Re4 {[%emt 0:01:00]} d3 {[%emt 0:00:18]} 37. Rcc4 {[%emt 0:00:23]} Qd7 {[%emt 0:00:44]} 38. Bd2 {[%emt 0:00:20]} Qa4 {[%emt 0:00:56]} 39. bxa5 {[%emt 0:00:24]} Qd1 {[%emt 0:00:22]} 40. Qe1 {[%emt 0:00:48]} Qxf3# {[%emt 0:00:04]} 0-1

[Event "95th Caplin Hastings Congress"]
[Site "Hastings"]
[Date "2019.12.29"]
[Round "2.57"]
[White "Salmons, Calum"]
[Black "Ratnesan, Radha"]
[Result "1-0"]
[ECO "C00"]
[WhiteElo "1796"]
[BlackElo "1477"]
[Annotator "NA"]
[PlyCount "71"]
[EventDate "2019.12.28"]
[EventType "swiss"]
[EventCountry "ENG"]
[SourceTitle "playchess.com"]
[Source "ChessBase"]
[SourceQuality "1"]
[TimeControl "40/6600+30:3000+30"]

1. e4 {[%emt 0:10:41]} e6 {[%emt 0:09:38]} 2. Nf3 {[%emt 0:00:24]} d5 {[%emt 0:00:12]} 3. e5 {[%emt 0:00:04]} c5 {[%emt 0:00:05]} 4. b4 {[%emt 0:00:05]} c4 {[%emt 0:00:06]} 5. c3 {[%emt 0:00:06]} Ne7 {[%emt 0:00:32]} 6. d4 {[%emt 0:01:55]} Nf5 {[%emt 0:04:51]} 7. g3 {[%emt 0:02:56]} Nc6 {[%emt 0:06:36]} 8. Bg2 {[%emt 0:01:24]} a5 {[%emt 0:03:19]} 9. b5 {[%emt 0:01:17]} Na7 {[%emt 0:06:08]} 10. a4 {[%emt 0:01:03]} f6 {[%emt 0:05:43]} 11. O-O {[%emt 0:04:40]} fxe5 {[%emt 0:11:32]} 12. Nxe5 {[%emt 0:03:20]} g6 {[%emt 0:07:25]} 13. h4 {[%emt 0:07:53]} Bd6 {[%emt 0:09:06]} 14. Qe2 {[%emt 0:05:29]} Bxe5 {[%emt 0:09:45]} 15. Qxe5 {[%emt 0:02:36]} Rf8 {[%emt 0:06:42]} 16. Re1 {[%emt 0:07:12]} Ne7 {[%emt 0:08:24]} 17. Bg5 {[%emt 0:06:39]} Rf7 {[%emt 0:04:28]} 18. Bh3 {[%emt 0:01:57]} Qb6 {[%emt 0:03:22]} 19. Qh8+ {[%emt 0:03:35]} Rf8 {[%emt 0:02:07]} 20. Qxh7 {[%emt 0:01:15]} Qd6 {[%emt 0:01:27]} 21. Bh6 {[%emt 0:07:56]} Rf7 {[%emt 0:02:08]} 22. Qh8+ {[%emt 0:00:35]} Kd7 {[%emt 0:00:24]} 23. Bxe6+ {[%emt 0:05:55]} Qxe6 {[%emt 0:00:57]} 24. Rxe6 {[%emt 0:00:10]} Kxe6 {[%emt 0:00:06]} 25. Qe5+ {[%emt 0:00:25]} Kd7 {[%emt 0:00:26]} 26. Bg5 {[%emt 0:00:34]} Ke8 {[%emt 0:03:34]} 27. Nd2 {[%emt 0:01:45]} Bf5 {[%emt 0:01:57]} 28. Bxe7 {[%emt 0:00:42]} Rxe7 {[%emt 0:00:16]} 29. Qh8+ {[%emt 0:00:15]} Kf7 {[%emt 0:00:26]} 30. Qxa8 {[%emt 0:00:19]} b6 {[%emt 0:00:15]} 31. Nf3 {[%emt 0:01:03]} Be4 {[%emt 0:00:30]} 32. Re1 {[%emt 0:00:29]} Kf6 {[%emt 0:00:45]} 33. Ng5 {[%emt 0:00:14]} Kg7 {[%emt 0:01:50]} 34. f3 {[%emt 0:00:11]} Kf6 {[%emt 0:00:09]} 35. Qf8+ {[%emt 0:00:05]} Rf7 {[%emt 0:00:12]} 36. Qxf7# {[%emt 0:00:38]} 1-0

[Event "95th Caplin Hastings Congress"]
[Site "Hastings"]
[Date "2019.12.29"]
[Round "2.58"]
[White "Thatte, Nishchal"]
[Black "Liu, Tianyi"]
[Result "1-0"]
[ECO "B22"]
[WhiteElo "1723"]
[BlackElo "1307"]
[Annotator "NA"]
[PlyCount "79"]
[EventDate "2019.12.28"]
[EventType "swiss"]
[EventCountry "ENG"]
[SourceTitle "playchess.com"]
[Source "ChessBase"]
[SourceQuality "1"]
[TimeControl "40/6600+30:3000+30"]

1. e4 {[%emt 0:09:34]} c5 {[%emt 0:09:34]} 2. c3 {[%emt 0:00:08]} d5 {[%emt 0:00:05]} 3. exd5 {[%emt 0:00:06]} Qxd5 {[%emt 0:00:05]} 4. d4 {[%emt 0:00:07]} Nf6 {[%emt 0:00:07]} 5. Nf3 {[%emt 0:00:06]} Nc6 {[%emt 0:00:12]} 6. Be3 {[%emt 0:00:56]} Bg4 {[%emt 0:01:00]} 7. dxc5 {[%emt 0:05:21]} Qxd1+ {[%emt 0:00:23]} 8. Kxd1 {[%emt 0:00:08]} Nd5 {[%emt 0:00:09]} 9. Bd2 {[%emt 0:02:25]} e5 {[%emt 0:01:46]} 10. b4 {[%emt 0:00:33]} e4 {[%emt 0:00:12]} 11. h3 {[%emt 0:00:09]} exf3 {[%emt 0:01:26]} 12. hxg4 {[%emt 0:00:08]} fxg2 {[%emt 0:00:11]} 13. Bxg2 {[%emt 0:00:07]} O-O-O {[%emt 0:01:51]} 14. Kc2 {[%emt 0:04:16]} g6 {[%emt 0:02:40]} 15. Na3 {[%emt 0:05:47]} Nc7 {[%emt 0:12:37]} 16. Nc4 {[%emt 0:05:56]} Rd7 {[%emt 0:03:14]} 17. Bxc6 {[%emt 0:03:05]} bxc6 {[%emt 0:00:04]} 18. Ne5 {[%emt 0:00:16]} Re7 {[%emt 0:00:44]} 19. Bg5 {[%emt 0:02:17]} Rxe5 {[%emt 0:02:37]} 20. Bf6 {[%emt 0:00:21]} Bg7 {[%emt 0:00:09]} 21. Bxg7 {[%emt 0:01:13]} Re2+ {[%emt 0:00:06]} 22. Kd3 {[%emt 0:04:40]} Rhe8 {[%emt 0:00:10]} 23. Bd4 {[%emt 0:00:16]} R2e7 {[%emt 0:02:15]} 24. Rxh7 {[%emt 0:02:16]} Rd7 {[%emt 0:01:46]} 25. Rah1 {[%emt 0:06:05]} Ne6 {[%emt 0:00:57]} 26. Rh8 {[%emt 0:02:13]} Rxh8 {[%emt 0:01:22]} 27. Rxh8+ {[%emt 0:00:07]} Kb7 {[%emt 0:00:11]} 28. Kc4 {[%emt 0:00:20]} Nd8 {[%emt 0:03:41]} 29. a4 {[%emt 0:00:59]} a6 {[%emt 0:00:25]} 30. Re8 {[%emt 0:03:10]} Ne6 {[%emt 0:02:28]} 31. Bf6 {[%emt 0:01:13]} Nf4 {[%emt 0:00:39]} 32. b5 {[%emt 0:02:07]} axb5+ {[%emt 0:03:04]} 33. axb5 {[%emt 0:00:09]} Nd5 {[%emt 0:01:05]} 34. bxc6+ {[%emt 0:00:14]} Kxc6 {[%emt 0:00:11]} 35. Rc8+ {[%emt 0:00:12]} Nc7 {[%emt 0:01:03]} 36. Be5 {[%emt 0:00:10]} Re7 {[%emt 0:01:26]} 37. Rxc7+ {[%emt 0:00:06]} Rxc7 {[%emt 0:00:03]} 38. Bxc7 {[%emt 0:00:07]} Kxc7 {[%emt 0:00:02]} 39. Kd5 {[%emt 0:00:07]} Kd7 {[%emt 0:00:04]} 40. c6+ {[%emt 0:00:06]} 1-0

[Event "95th Caplin Hastings Congress"]
[Site "Hastings"]
[Date "2019.12.29"]
[Round "2.59"]
[White "Thatte, Nandinee"]
[Black "Verma, Shlok"]
[Result "0-1"]
[ECO "D20"]
[WhiteElo "1270"]
[BlackElo "1691"]
[Annotator "NA"]
[PlyCount "110"]
[EventDate "2019.12.28"]
[EventType "swiss"]
[EventCountry "ENG"]
[SourceTitle "playchess.com"]
[Source "ChessBase"]
[SourceQuality "1"]
[TimeControl "40/6600+30:3000+30"]

1. d4 {[%emt 0:09:32]} d5 {[%emt 0:09:32]} 2. c4 {[%emt 0:00:07]} dxc4 {[%emt 0:00:06]} 3. Nc3 {[%emt 0:00:07]} Nf6 {[%emt 0:00:59]} 4. e4 {[%emt 0:00:23]} e5 {[%emt 0:00:49]} 5. Nf3 {[%emt 0:00:28]} exd4 {[%emt 0:06:11]} 6. Qxd4 {[%emt 0:00:16]} Qxd4 {[%emt 0:01:57]} 7. Nxd4 {[%emt 0:00:18]} Bb4 {[%emt 0:00:48]} 8. Ndb5 {[%emt 0:09:57]} Na6 {[%emt 0:01:53]} 9. f3 {[%emt 0:15:51]} O-O {[%emt 0:12:41]} 10. Bf4 {[%emt 0:11:54]} c6 {[%emt 0:04:20]} 11. Nd4 {[%emt 0:13:04]} Bc5 {[%emt 0:13:57]} 12. O-O-O {[%emt 0:03:44]} Rd8 {[%emt 0:01:30]} 13. Be3 {[%emt 0:01:14]} Be6 {[%emt 0:01:32]} 14. Kb1 {[%emt 0:01:55]} Bxd4 {[%emt 0:10:57]} 15. Bxd4 {[%emt 0:07:06]} b5 {[%emt 0:01:46]} 16. Be2 {[%emt 0:02:18]} Ne8 {[%emt 0:02:43]} 17. f4 {[%emt 0:04:56]} f5 {[%emt 0:05:05]} 18. Bf3 {[%emt 0:05:15]} fxe4 {[%emt 0:10:35]} 19. Bxe4 {[%emt 0:00:14]} Nb4 {[%emt 0:00:24]} 20. f5 {[%emt 0:06:06]} Bf7 {[%emt 0:00:21]} 21. g4 {[%emt 0:04:21]} Nd5 {[%emt 0:03:48]} 22. Nxd5 {[%emt 0:01:48]} Bxd5 {[%emt 0:00:52]} 23. Rhe1 {[%emt 0:01:36]} Bxe4+ {[%emt 0:00:40]} 24. Rxe4 {[%emt 0:00:10]} c5 {[%emt 0:00:07]} 25. Rxe8+ {[%emt 0:03:06]} Rxe8 {[%emt 0:00:24]} 26. Bxc5 {[%emt 0:00:08]} Rad8 {[%emt 0:01:20]} 27. Rh1 {[%emt 0:02:33]} a6 {[%emt 0:00:15]} 28. Bb4 {[%emt 0:00:16]} Rd3 {[%emt 0:00:35]} 29. Bc3 {[%emt 0:00:37]} Re4 {[%emt 0:00:19]} 30. h3 {[%emt 0:00:46]} Kf7 {[%emt 0:01:34]} 31. Kc2 {[%emt 0:00:52]} Re2+ {[%emt 0:01:25]} 32. Kc1 {[%emt 0:01:59]} Rg2 {[%emt 0:00:59]} 33. Be5 {[%emt 0:00:39]} Rf2 {[%emt 0:00:39]} 34. a3 {[%emt 0:01:25]} Rdf3 {[%emt 0:00:42]} 35. h4 {[%emt 0:01:18]} Rf1+ {[%emt 0:00:23]} 36. Rxf1 {[%emt 0:00:05]} Rxf1+ {[%emt 0:00:05]} 37. Kc2 {[%emt 0:00:08]} Rh1 {[%emt 0:00:30]} 38. Kc3 {[%emt 0:00:30]} Rxh4 {[%emt 0:00:44]} 39. Kb4 {[%emt 0:00:08]} Rxg4 {[%emt 0:00:13]} 40. Ka5 {[%emt 0:00:09]} Rg5 {[%emt 0:00:22]} 41. Kxa6 {[%emt 0:50:20]} Rxf5 {[%emt 0:50:18]} 42. Bg3 {[%emt 0:00:45]} h5 {[%emt 0:00:25]} 43. Be1 {[%emt 0:00:18]} g5 {[%emt 0:00:10]} 44. Ka5 {[%emt 0:00:05]} h4 {[%emt 0:00:15]} 45. a4 {[%emt 0:00:08]} bxa4+ {[%emt 0:00:09]} 46. Kxa4 {[%emt 0:00:07]} h3 {[%emt 0:00:31]} 47. Bg3 {[%emt 0:00:05]} g4 {[%emt 0:00:12]} 48. b4 {[%emt 0:00:06]} cxb3 {[%emt 0:00:24]} 49. Kxb3 {[%emt 0:00:05]} Rf3+ {[%emt 0:00:11]} 50. Kc4 {[%emt 0:00:05]} Rxg3 {[%emt 0:00:08]} 51. Kd4 {[%emt 0:00:07]} h2 {[%emt 0:00:10]} 52. Ke4 {[%emt 0:00:04]} h1=Q+ {[%emt 0:00:12]} 53. Kf4 {[%emt 0:00:02]} Rf3+ {[%emt 0:00:23]} 54. Kxg4 {[%emt 0:00:11]} Qg2+ {[%emt 0:00:07]} 55. Kh4 {[%emt 0:00:04]} Rh3# {[%emt 0:00:11]} 0-1

[Event "95th Caplin Hastings Congress"]
[Site "Hastings"]
[Date "2019.12.30"]
[Round "3.2"]
[White "Panchanathan, Magesh Chandran"]
[Black "Edouard, Romain"]
[Result "1/2-1/2"]
[ECO "A28"]
[WhiteElo "2479"]
[BlackElo "2653"]
[Annotator "ChessBase"]
[PlyCount "22"]
[EventDate "2019.12.28"]
[EventType "swiss"]
[EventCountry "ENG"]
[SourceTitle "playchess.com"]
[Source "ChessBase"]
[SourceQuality "1"]
[TimeControl "40/6600+30:3000+30"]

1. c4 {[%emt 0:11:08]} e5 {[%emt 0:13:31]} 2. Nc3 {[%emt 0:00:10]} Nf6 {[%emt 0:00:04]} 3. Nf3 {[%emt 0:00:08]} Nc6 {[%emt 0:00:03]} 4. e3 {[%emt 0:00:15]} Bb4 {[%emt 0:00:44]} 5. Qc2 {[%emt 0:00:22]} Bxc3 {[%emt 0:05:43]} 6. Qxc3 {[%emt 0:00:11]} Qe7 {[%emt 0:00:02]} 7. Be2 {[%emt 0:02:15]} d5 {[%emt 0:00:25]} 8. d4 {[%emt 0:00:11]} exd4 {[%emt 0:00:33]} 9. Nxd4 {[%emt 0:00:06]} Nxd4 {[%emt 0:00:04]} 10. Qxd4 {[%emt 0:00:07]} c5 {[%emt 0:00:08]} 11. Qf4 {[%emt 0:00:13]} O-O {[%emt 0:01:12]} 1/2-1/2

[Event "95th Caplin Hastings Congress"]
[Site "Hastings"]
[Date "2019.12.30"]
[Round "3.3"]
[White "Van den Doel, Erik"]
[Black "Williams, Simon K"]
[Result "1/2-1/2"]
[ECO "C01"]
[WhiteElo "2589"]
[BlackElo "2461"]
[Annotator "ChessBase"]
[PlyCount "121"]
[EventDate "2019.12.28"]
[EventType "swiss"]
[EventCountry "ENG"]
[SourceTitle "playchess.com"]
[Source "ChessBase"]
[SourceQuality "1"]
[TimeControl "40/6600+30:3000+30"]

1. d4 {[%emt 0:09:34]} e6 {[%emt 0:11:04]} 2. e4 {[%emt 0:00:26]} d5 {[%emt 0:00:11]} 3. exd5 {[%emt 0:00:04]} exd5 {[%emt 0:00:09]} 4. Nf3 {[%emt 0:00:04]} Nf6 {[%emt 0:02:54]} 5. Bg5 {[%emt 0:00:19]} Be7 {[%emt 0:02:03]} 6. Bd3 {[%emt 0:00:31]} Bg4 {[%emt 0:24:55]} 7. O-O {[%emt 0:03:38]} Nc6 {[%emt 0:01:02]} 8. c3 {[%emt 0:05:14]} Ne4 {[%emt 0:01:45]} 9. Bxe7 {[%emt 0:01:25]} Qxe7 {[%emt 0:04:17]} 10. Re1 {[%emt 0:17:03]} O-O-O {[%emt 0:01:40]} 11. Nbd2 {[%emt 0:00:42]} f5 {[%emt 0:01:59]} 12. Qa4 {[%emt 0:12:45]} Bxf3 {[%emt 0:12:26]} 13. Nxf3 {[%emt 0:00:04]} g5 {[%emt 0:00:06]} 14. Bb5 {[%emt 0:06:39]} g4 {[%emt 0:01:01]} 15. Nd2 {[%emt 0:01:12]} Rd6 {[%emt 0:11:23]} 16. Bxc6 {[%emt 0:20:03]} Rxc6 {[%emt 0:01:58]} 17. Nxe4 {[%emt 0:00:09]} fxe4 {[%emt 0:00:05]} 18. Qxa7 {[%emt 0:00:18]} Ra6 {[%emt 0:05:47]} 19. Qc5 {[%emt 0:00:10]} Qf7 {[%emt 0:01:43]} 20. c4 {[%emt 0:13:49]} Rf8 {[%emt 0:01:34]} 21. Re2 {[%emt 0:00:12]} e3 {[%emt 0:14:32]} 22. Qxd5 {[%emt 0:11:55]} exf2+ {[%emt 0:00:06]} 23. Kf1 {[%emt 0:00:03]} Qxd5 {[%emt 0:00:30]} 24. cxd5 {[%emt 0:00:03]} g3 {[%emt 0:00:05]} 25. Re3 {[%emt 0:00:09]} gxh2 {[%emt 0:01:17]} 26. Rh3 {[%emt 0:00:09]} Rd6 {[%emt 0:00:53]} 27. Rxh2 {[%emt 0:01:54]} Rxd5 {[%emt 0:00:07]} 28. Rh4 {[%emt 0:00:57]} h5 {[%emt 0:06:06]} 29. Rd1 {[%emt 0:02:34]} Rg5 {[%emt 0:01:05]} 30. Rh2 {[%emt 0:02:14]} Kd7 {[%emt 0:04:13]} 31. Rd3 {[%emt 0:00:45]} Rgf5 {[%emt 0:03:06]} 32. Rhh3 {[%emt 0:01:03]} Kd6 {[%emt 0:03:31]} 33. Rhf3 {[%emt 0:01:21]} Kd5 {[%emt 0:00:10]} 34. Kxf2 {[%emt 0:00:20]} Ke4 {[%emt 0:00:03]} 35. Ke2 {[%emt 0:04:18]} Rxf3 {[%emt 0:00:07]} 36. gxf3+ {[%emt 0:00:03]} Kf4 {[%emt 0:00:05]} 37. Kf2 {[%emt 0:00:57]} Rf6 {[%emt 0:03:56]} 38. Rc3 {[%emt 0:01:33]} Rb6 {[%emt 0:00:31]} 39. b3 {[%emt 0:00:51]} c6 {[%emt 0:00:16]} 40. Rc4 {[%emt 0:02:06]} Ra6 {[%emt 0:00:38]} 41. d5+ {[%emt 0:22:26]} Ke5 {[%emt 0:00:07]} 42. dxc6 {[%emt 0:03:41]} Rxa2+ {[%emt 0:00:06]} 43. Kg3 {[%emt 0:12:44]} bxc6 {[%emt 0:00:05]} 44. Rxc6 {[%emt 0:00:38]} Rb2 {[%emt 0:02:02]} 45. Rc5+ {[%emt 0:01:10]} Kf6 {[%emt 0:00:23]} 46. Rb5 {[%emt 0:01:14]} Rb1 {[%emt 0:01:45]} 47. Kf4 {[%emt 0:01:42]} h4 {[%emt 0:01:56]} 48. Kg4 {[%emt 0:03:56]} Rh1 {[%emt 0:00:13]} 49. Rf5+ {[%emt 0:00:56]} Kg6 {[%emt 0:00:31]} 50. Rf4 {[%emt 0:00:28]} Kg7 {[%emt 0:12:29]} 51. b4 {[%emt 0:02:58]} Kg6 {[%emt 0:00:06]} 52. Rc4 {[%emt 0:00:12]} Kf7 {[%emt 0:03:44]} 53. f4 {[%emt 0:02:08]} h3 {[%emt 0:00:26]} 54. Kg3 {[%emt 0:00:40]} Ke7 {[%emt 0:02:54]} 55. f5 {[%emt 0:02:05]} Kf6 {[%emt 0:03:00]} 56. Rf4 {[%emt 0:00:45]} Rb1 {[%emt 0:01:10]} 57. Kxh3 {[%emt 0:00:37]} Kg5 {[%emt 0:00:07]} 58. Kg3 {[%emt 0:01:25]} Rb3+ {[%emt 0:00:12]} 59. Rf3 {[%emt 0:00:04]} Rxb4 {[%emt 0:00:27]} 60. f6 {[%emt 0:00:04]} Rb8 {[%emt 0:00:04]} 61. f7 {[%emt 0:00:09]} 1/2-1/2

[Event "95th Caplin Hastings Congress"]
[Site "Hastings"]
[Date "2019.12.30"]
[Round "3.5"]
[White "Arkell, Keith C"]
[Black "Stany, G.A."]
[Result "1/2-1/2"]
[ECO "D74"]
[WhiteElo "2453"]
[BlackElo "2526"]
[Annotator "ChessBase"]
[PlyCount "137"]
[EventDate "2019.12.28"]
[EventType "swiss"]
[EventCountry "ENG"]
[SourceTitle "playchess.com"]
[Source "ChessBase"]
[SourceQuality "1"]
[TimeControl "40/6600+30:3000+30"]

1. Nf3 {[%emt 0:12:40]} Nf6 {[%emt 0:09:35]} 2. c4 {[%emt 0:00:04]} g6 {[%emt 0:04:13]} 3. Nc3 {[%emt 0:00:12]} d5 {[%emt 0:00:04]} 4. cxd5 {[%emt 0:00:05]} Nxd5 {[%emt 0:00:03]} 5. g3 {[%emt 0:00:31]} Bg7 {[%emt 0:00:16]} 6. Bg2 {[%emt 0:00:06]} Nc6 {[%emt 0:01:26]} 7. d4 {[%emt 0:00:57]} O-O {[%emt 0:00:06]} 8. O-O {[%emt 0:00:05]} Bf5 {[%emt 0:00:15]} 9. e3 {[%emt 0:01:27]} Nxc3 {[%emt 0:01:34]} 10. bxc3 {[%emt 0:00:04]} Be4 {[%emt 0:00:43]} 11. Nd2 {[%emt 0:03:01]} Bxg2 {[%emt 0:00:08]} 12. Kxg2 {[%emt 0:00:03]} e5 {[%emt 0:00:24]} 13. Ba3 {[%emt 0:02:50]} Re8 {[%emt 0:00:07]} 14. Qb3 {[%emt 0:01:00]} b6 {[%emt 0:11:26]} 15. Rfd1 {[%emt 0:05:29]} Na5 {[%emt 0:03:42]} 16. Qa4 {[%emt 0:05:35]} exd4 {[%emt 0:02:54]} 17. cxd4 {[%emt 0:00:11]} Qd5+ {[%emt 0:00:45]} 18. Kg1 {[%emt 0:01:11]} Rac8 {[%emt 0:14:34]} 19. Bb4 {[%emt 0:03:36]} Nb7 {[%emt 0:06:40]} 20. Rac1 {[%emt 0:15:54]} a5 {[%emt 0:04:54]} 21. Ba3 {[%emt 0:08:15]} b5 {[%emt 0:18:51]} 22. Qb3 {[%emt 0:00:30]} Qxb3 {[%emt 0:00:39]} 23. axb3 {[%emt 0:05:10]} c5 {[%emt 0:00:47]} 24. Bxc5 {[%emt 0:02:49]} Nxc5 {[%emt 0:00:05]} 25. dxc5 {[%emt 0:00:05]} Red8 {[%emt 0:01:13]} 26. Ne4 {[%emt 0:07:09]} Rxd1+ {[%emt 0:07:32]} 27. Rxd1 {[%emt 0:00:04]} f5 {[%emt 0:07:26]} 28. Ng5 {[%emt 0:10:00]} Bf6 {[%emt 0:13:07]} 29. h4 {[%emt 0:14:02]} a4 {[%emt 0:02:27]} 30. bxa4 {[%emt 0:00:24]} bxa4 {[%emt 0:00:05]} 31. Rd6 {[%emt 0:03:04]} Ra8 {[%emt 0:02:51]} 32. Rxf6 {[%emt 0:02:13]} a3 {[%emt 0:00:04]} 33. Rd6 {[%emt 0:00:06]} a2 {[%emt 0:00:06]} 34. Rd1 {[%emt 0:00:03]} a1=Q {[%emt 0:01:05]} 35. Rxa1 {[%emt 0:00:04]} Rxa1+ {[%emt 0:00:04]} 36. Kg2 {[%emt 0:00:04]} Rc1 {[%emt 0:00:14]} 37. Ne6 {[%emt 0:00:05]} Kf7 {[%emt 0:01:12]} 38. Ng5+ {[%emt 0:00:22]} Kg8 {[%emt 0:00:40]} 39. Ne6 {[%emt 0:00:07]} h6 {[%emt 0:00:30]} 40. Kf3 {[%emt 0:02:05]} Kf7 {[%emt 0:00:08]} 41. Nd8+ {[%emt 0:50:34]} Ke7 {[%emt 0:50:23]} 42. Nb7 {[%emt 0:01:51]} Rc4 {[%emt 0:01:45]} 43. Ke2 {[%emt 0:00:32]} Rc2+ {[%emt 0:00:06]} 44. Kf3 {[%emt 0:00:09]} Kf6 {[%emt 0:01:05]} 45. Kg2 {[%emt 0:00:24]} Ke5 {[%emt 0:00:41]} 46. Kf3 {[%emt 0:00:56]} Kd5 {[%emt 0:01:02]} 47. Kg2 {[%emt 0:02:00]} Ra2 {[%emt 0:00:00]} 48. Nd6 {[%emt 0:00:00]} Ra5 {[%emt 0:00:00]} 49. Nc8 {[%emt 0:00:00]} Ke6 {[%emt 0:00:00]} 50. c6 {[%emt 0:00:00]} Rc5 {[%emt 0:00:00]} 51. Na7 {[%emt 0:03:00]} Kd6 {[%emt 0:00:00]} 52. Nc8+ {[%emt 0:00:22]} Ke5 {[%emt 0:00:00]} 53. Na7 {[%emt 0:01:18]} Ke4 {[%emt 0:00:00]} 54. c7 {[%emt 0:00:24]} Rxc7 {[%emt 0:00:00]} 55. Nb5 {[%emt 0:00:03]} Rd7 {[%emt 0:00:00]} 56. Nd4 {[%emt 0:00:57]} Rd6 {[%emt 0:00:00]} 57. Nf3 {[%emt 0:00:10]} Kd3 {[%emt 0:00:00]} 58. Nd4 {[%emt 0:00:15]} Rd5 {[%emt 0:00:00]} 59. Nf3 {[%emt 0:01:46]} Ke4 {[%emt 0:00:00]} 60. Nd4 {[%emt 0:00:08]} Rxd4 {[%emt 0:00:46]} 61. exd4 {[%emt 0:00:05]} Kxd4 {[%emt 0:00:04]} 62. Kf3 {[%emt 0:00:28]} g5 {[%emt 0:00:22]} 63. hxg5 {[%emt 0:00:07]} hxg5 {[%emt 0:00:04]} 64. Ke2 {[%emt 0:00:11]} Ke4 {[%emt 0:00:06]} 65. f3+ {[%emt 0:02:27]} Kd4 {[%emt 0:00:05]} 66. f4 {[%emt 0:00:07]} gxf4 {[%emt 0:00:14]} 67. gxf4 {[%emt 0:00:03]} Ke4 {[%emt 0:00:05]} 68. Kf1 {[%emt 0:00:17]} Kxf4 {[%emt 0:00:08]} 69. Kf2 {[%emt 0:00:04]} 1/2-1/2